fUST/lending_fUST_20241228
["ID","MTS","AMOUNT","RATE_DAILY","PERIOD"]
[346849266,1735325352816,-500.0,0.00013489,2]
[346849267,1735325352839,-500.0,0.0001349,2]
[346849268,1735325352860,-500.0,0.0001349,2]
[346849269,1735325352883,-500.0,0.0001349,2]
[346849270,1735325352906,-500.0,0.00013589,2]
[346849271,1735325352929,-500.0,0.00013589,2]
[346849272,1735325352951,-500.0,0.00013589,2]
[346849273,1735325352972,-500.0,0.00013589,2]
[346849274,1735325352996,-500.0,0.00013589,2]
[346849275,1735325353018,-500.0,0.00013589,2]
[346849276,1735325353039,-500.0,0.00013589,2]
[346849277,1735325353060,-500.0,0.00013589,2]
[346849278,1735325353086,-500.0,0.00013589,2]
[346849279,1735325353109,-500.0,0.00013589,2]
[346849280,1735325353132,-500.0,0.00013589,2]
[346849281,1735325353156,-500.0,0.00013589,2]
[346849282,1735325353179,-299.26815914,0.00013589,2]
[346849283,1735325353201,-500.0,0.00013589,2]
[346849284,1735325353224,-500.0,0.00013589,2]
[346849285,1735325353248,-500.0,0.00013589,2]
[346849286,1735325353275,-500.0,0.00013589,2]
[346849287,1735325353298,-500.0,0.00013589,2]
[346849288,1735325353323,-597.94,0.00013589,2]
[346849289,1735325353346,-500.0,0.00013589,2]
[346849290,1735325353368,-500.0,0.00013589,2]
[346849291,1735325353390,-282.16,0.00013589,2]
[346849292,1735325353412,-500.0,0.00013589,2]
[346849293,1735325353434,-500.0,0.00013589,2]
[346849294,1735325353457,-500.0,0.00013589,2]
[346849295,1735325353479,-500.0,0.00013589,2]
[346849296,1735325353501,-500.0,0.00013589,2]
[346849297,1735325353523,-500.0,0.00013589,2]
[346849298,1735325353544,-500.0,0.00013589,2]
[346849299,1735325353565,-292.58,0.00013589,2]
[346849300,1735325353587,-262.09,0.00013589,2]
[346849301,1735325353610,-500.0,0.0001359,2]
[346849302,1735325353637,-6695.98,0.0001359,2]
[346849303,1735325353659,-500.0,0.0001359,2]
[346849304,1735325353680,-500.0,0.00013591,2]
[346849305,1735325353701,-500.0,0.00013591,2]
[346849306,1735325353726,-500.0,0.00013591,2]
[346849307,1735325353750,-617.66711792,0.00013591,2]
[346849308,1735325353773,-500.0,0.00013591,2]
[346849309,1735325353891,-500.0,0.00013591,2]
[346849310,1735325353913,-500.0,0.00013591,2]
[346849311,1735325353935,-152.5,0.00013591,2]
[346849312,1735325353958,-500.0,0.00013591,2]
[346849313,1735325353979,-500.0,0.00013591,2]
[346849314,1735325354000,-307.68242287,0.00013591,2]
[346849315,1735325354022,-500.0,0.00013591,2]
[346849316,1735325354047,-589.65244374,0.00013591,2]
[346849317,1735325354068,-627.6,0.00013591,2]
[346849318,1735325354090,-500.0,0.00013591,2]
[346849319,1735325354111,-386.19,0.00013591,2]
[346849320,1735325354131,-500.0,0.00013591,2]
[346849321,1735325354152,-183.48,0.00013591,2]
[346849322,1735325354174,-500.0,0.00013591,2]
[346849323,1735325354195,-292.67,0.00013591,2]
[346849324,1735325354219,-500.0,0.00013591,2]
[346849325,1735325354242,-474.65180775,0.00013591,2]
[346849326,1735325354264,-500.0,0.00013591,2]
[346849327,1735325354285,-500.0,0.00013591,2]
[346849328,1735325354306,-500.0,0.00013591,2]
[346849329,1735325354328,-500.0,0.00013591,2]
[346849330,1735325354352,-500.0,0.00013591,2]
[346849331,1735325354374,-500.0,0.00013591,2]
[346849332,1735325354396,-564.07,0.00013591,2]
[346849333,1735325354419,-500.0,0.00013591,2]
[346849334,1735325354441,-500.0,0.00013591,2]
[346849335,1735325354465,-500.0,0.00013591,2]
[346849336,1735325354486,-626.26,0.00013591,2]
[346849337,1735325354507,-500.0,0.00013591,2]
[346849338,1735325354532,-500.0,0.00013591,2]
[346849339,1735325354554,-500.0,0.00013591,2]
[346849340,1735325354576,-273.27,0.00013591,2]
[346849341,1735325354598,-500.0,0.00013591,2]
[346849342,1735325354620,-500.0,0.00013591,2]
[346849343,1735325354642,-500.0,0.00013591,2]
[346849344,1735325354663,-500.0,0.00013591,2]
[346849345,1735325354685,-500.0,0.00013591,2]
[346849346,1735325354708,-531.62,0.00013591,2]
[346849347,1735325354729,-500.0,0.00013591,2]
[346849348,1735325354751,-500.0,0.00013591,2]
[346849349,1735325354772,-500.0,0.00013591,2]
[346849350,1735325354798,-500.0,0.00013591,2]
[346849351,1735325354820,-546.12,0.00013591,2]
[346849352,1735325354841,-541.82702421,0.00013592,2]
[346849353,1735325354862,-500.0,0.00013592,2]
[346849354,1735325354884,-500.0,0.00013592,2]
[346849355,1735325354906,-500.0,0.00013592,2]
[346849356,1735325354928,-500.0,0.00013592,2]
[346849357,1735325354950,-500.0,0.00013592,2]
[346849358,1735325354975,-500.0,0.00013592,2]
[346849359,1735325354998,-365.87226685,0.00013592,2]
[346849360,1735325355021,-500.0,0.00013592,2]
[346849361,1735325355043,-500.0,0.00013592,2]
[346849362,1735325355065,-500.0,0.00013592,2]
[346849363,1735325355087,-500.0,0.00013592,2]
[346849364,1735325355109,-500.0,0.00013592,2]
[346849365,1735325355131,-500.0,0.00013592,2]
[346849366,1735325355153,-152.0,0.00013609,2]
[346849367,1735325355176,-263.5496652,0.00013699,2]
[346849368,1735325355199,-500.0,0.00013762,2]
[346849369,1735325355223,-505.01891595,0.00013763,2]
[346849370,1735325355246,-500.0,0.00013763,2]
[346849371,1735325355270,-500.0,0.00013763,2]
[346849372,1735325355294,-500.0,0.00013764,2]
[346849373,1735325355316,-310.66656121,0.00013764,2]
[346849374,1735325355356,-189.33343879,0.00013764,2]
[346849375,1735325355378,-500.0,0.00013764,2]
[346849376,1735325355399,-500.0,0.00013863,2]
[346849377,1735325355420,-500.0,0.00013863,2]
[346849378,1735325355441,-500.0,0.00013863,2]
[346849379,1735325355463,-500.0,0.00013863,2]
[346849380,1735325355484,-500.0,0.00013863,2]
[346849381,1735325355506,-500.0,0.00013863,2]
[346849382,1735325355527,-500.0,0.00013863,2]
[346849383,1735325355548,-500.0,0.00013863,2]
[346849384,1735325355570,-500.0,0.00013863,2]
[346849385,1735325355592,-271.40053633,0.00013863,2]
[346849386,1735325355613,-500.0,0.00013863,2]
[346849387,1735325355634,-500.0,0.00013863,2]
[346849388,1735325355655,-338.1,0.00013863,2]
[346849389,1735325355675,-500.0,0.00013863,2]
[346849390,1735325355697,-500.0,0.00013863,2]
[346849391,1735325355718,-500.0,0.00013863,2]
[346849392,1735325355739,-500.0,0.00013863,2]
[346849393,1735325355761,-500.0,0.00013863,2]
[346849394,1735325355782,-500.0,0.00013863,2]
[346849395,1735325355805,-500.0,0.00013863,2]
[346849396,1735325355826,-500.0,0.00013863,2]
[346849397,1735325355848,-500.0,0.00013863,2]
[346849398,1735325355870,-345.76,0.00013863,2]
[346849399,1735325355890,-500.0,0.00013863,2]
[346849400,1735325355910,-500.0,0.00013863,2]
[346849401,1735325355931,-500.0,0.00013864,2]
[346849402,1735325355953,-6695.98,0.00013864,2]
[346849403,1735325355976,-500.0,0.00013864,2]
[346849404,1735325355998,-500.0,0.00013865,2]
[346849405,1735325356019,-625.87,0.00013865,2]
[346849406,1735325356039,-500.0,0.00013865,2]
[346849407,1735325356060,-500.0,0.00013865,2]
[346849408,1735325356081,-500.0,0.00013865,2]
[346849409,1735325356101,-275.42,0.00013865,2]
[346849410,1735325356122,-500.0,0.00013865,2]
[346849411,1735325356143,-500.0,0.00013865,2]
[346849412,1735325356162,-207.14,0.00013865,2]
[346849413,1735325356182,-500.0,0.00013865,2]
[346849414,1735325356202,-209.9569219,0.00013865,2]
[346849415,1735325356222,-430.43,0.00013865,2]
[346849416,1735325356243,-500.0,0.00013865,2]
[346849417,1735325356265,-500.0,0.00013865,2]
[346849418,1735325356286,-500.0,0.00013865,2]
[346849419,1735325356306,-500.0,0.00013865,2]
[346849420,1735325356327,-361.48,0.00013865,2]
[346849421,1735325356347,-436.88,0.00013865,2]
[346849422,1735325356367,-500.0,0.00013865,2]
[346849423,1735325356478,-408.47,0.00013865,2]
[346849424,1735325356500,-500.0,0.00013865,2]
[346849425,1735325356524,-500.0,0.00013865,2]
[346849426,1735325356545,-623.66,0.00013865,2]
[346849427,1735325356567,-500.0,0.00013865,2]
[346849428,1735325356588,-500.0,0.00013865,2]
[346849429,1735325356609,-500.0,0.00013865,2]
[346849430,1735325356630,-500.0,0.00013865,2]
[346849431,1735325356650,-287.36643734,0.00013865,2]
[346849432,1735325356670,-507.67894047,0.00013866,2]
[346849433,1735325356691,-500.0,0.00013866,2]
[346849434,1735325356715,-500.0,0.00013866,2]
[346849435,1735325356736,-500.0,0.00013866,2]
[346849436,1735325356758,-500.0,0.00013866,2]
[346849437,1735325356779,-500.0,0.00013866,2]
[346849438,1735325356799,-500.0,0.00013866,2]
[346849439,1735325356823,-500.0,0.00013866,2]
[346849440,1735325356843,-500.0,0.00013866,2]
[346849441,1735325356864,-400.0,0.00013973,2]
[346849442,1735325356884,-500.0,0.00013997,2]
[346849443,1735325356904,-192.0,0.00014015,2]
[346849444,1735325356925,-508.31,0.00014036,2]
[346849445,1735325356947,-500.0,0.00014037,2]
[346849446,1735325356968,-500.0,0.00014037,2]
[346849447,1735325356991,-500.0,0.00014038,2]
[346849448,1735325357014,-259.81822621,0.00014038,2]
[346849449,1735325357038,-500.0,0.00014038,2]
[346849450,1735325357058,-352.14094772,0.00014047,2]
[346849451,1735325357080,-500.0,0.00014137,2]
[346849452,1735325357101,-500.0,0.00014137,2]
[346849453,1735325357123,-500.0,0.00014137,2]
[346849454,1735325357147,-500.0,0.00014137,2]
[346849455,1735325357169,-280.36,0.00014137,2]
[346849456,1735325357190,-500.0,0.00014137,2]
[346849457,1735325357212,-500.0,0.00014137,2]
[346849458,1735325357237,-500.0,0.00014137,2]
[346849459,1735325357261,-500.0,0.00014137,2]
[346849460,1735325357283,-500.0,0.00014137,2]
[346849461,1735325357306,-500.0,0.00014137,2]
[346849462,1735325357327,-500.0,0.00014137,2]
[346849463,1735325357349,-500.0,0.00014137,2]
[346849464,1735325357371,-500.0,0.00014137,2]
[346849465,1735325357392,-500.0,0.00014137,2]
[346849466,1735325357416,-500.0,0.00014137,2]
[346849467,1735325357438,-500.0,0.00014137,2]
[346849468,1735325357459,-500.0,0.00014137,2]
[346849469,1735325357480,-500.0,0.00014137,2]
[346849470,1735325357504,-500.0,0.00014137,2]
[346849471,1735325357524,-500.0,0.00014137,2]
[346849472,1735325357546,-500.0,0.00014137,2]
[346849473,1735325357567,-500.0,0.00014138,2]
[346849474,1735325357589,-3640.26050832,0.00014138,2]
[346849475,1735325357703,-3055.71949168,0.00014138,2]
[346849476,1735325357725,-500.0,0.00014138,2]
[346849477,1735325357746,-203.76,0.00014139,2]
[346849478,1735325357768,-500.0,0.00014139,2]
[346849479,1735325357793,-500.0,0.00014139,2]
[346849480,1735325357815,-500.0,0.00014139,2]
[346849481,1735325357836,-500.0,0.00014139,2]
[346849482,1735325357857,-615.83,0.00014139,2]
[346849483,1735325357880,-500.0,0.00014139,2]
[346849484,1735325357902,-500.0,0.00014139,2]
[346849485,1735325357922,-500.0,0.00014139,2]
[346849486,1735325357943,-500.0,0.00014139,2]
[346849487,1735325357964,-500.0,0.00014139,2]
[346849488,1735325357985,-201.07339035,0.00014139,2]
[346849489,1735325358006,-500.0,0.00014139,2]
[346849490,1735325358027,-500.0,0.00014139,2]
[346849491,1735325358048,-500.0,0.00014139,2]
[346849492,1735325358069,-500.0,0.00014139,2]
[346849493,1735325358089,-617.26,0.00014139,2]
[346849494,1735325358110,-500.0,0.0001414,2]
[346849495,1735325358131,-386.18,0.0001414,2]
[346849496,1735325358156,-500.0,0.0001414,2]
[346849497,1735325358178,-500.0,0.0001414,2]
[346849498,1735325358199,-500.0,0.0001414,2]
[346849499,1735325358221,-500.0,0.0001414,2]
[346849500,1735325358242,-542.74,0.0001414,2]
[346849501,1735325358263,-317.29235454,0.00014221,2]
[346849502,1735325358284,-500.0,0.00014264,2]
[346849503,1735325358305,-500.0,0.00014287,2]
[346849504,1735325358325,-500.0,0.00014311,2]
[346849505,1735325358346,-500.0,0.00014311,2]
[346849506,1735325358368,-500.0,0.00014312,2]
[346849507,1735325358396,-500.0,0.00014312,2]
[346849508,1735325358418,-500.0,0.00014411,2]
[346849509,1735325358438,-568.03603036,0.00014411,2]
[346849510,1735325358459,-370.7,0.00014411,2]
[346849511,1735325358480,-500.0,0.00014411,2]
[346849512,1735325358501,-500.0,0.00014411,2]
[346849513,1735325358524,-646.19,0.00014411,2]
[346849514,1735325358547,-500.0,0.00014411,2]
[346849515,1735325358569,-500.0,0.00014411,2]
[346849516,1735325358591,-500.0,0.00014411,2]
[346849517,1735325358612,-500.0,0.00014411,2]
[346849518,1735325358633,-500.0,0.00014411,2]
[346849519,1735325358655,-500.0,0.00014411,2]
[346849520,1735325358677,-500.0,0.00014411,2]
[346849521,1735325358700,-500.0,0.00014411,2]
[346849522,1735325358722,-500.0,0.00014411,2]
[346849523,1735325358832,-280.85861265,0.00014411,2]
[346849524,1735325358857,-500.0,0.00014411,2]
[346849525,1735325358880,-500.0,0.00014411,2]
[346849526,1735325358905,-500.0,0.00014411,2]
[346849527,1735325358928,-500.0,0.00014411,2]
[346849528,1735325358950,-500.0,0.00014411,2]
[346849529,1735325358973,-500.0,0.00014412,2]
[346849530,1735325358996,-6695.98,0.00014412,2]
[346849531,1735325359019,-500.0,0.00014412,2]
[346849532,1735325359040,-500.0,0.00014413,2]
[346849533,1735325359061,-500.0,0.00014413,2]
[346849534,1735325359083,-500.0,0.00014413,2]
[346849535,1735325359105,-500.0,0.00014413,2]
[346849536,1735325359130,-500.0,0.00014413,2]
[346849537,1735325359153,-500.0,0.00014413,2]
[346849538,1735325359175,-500.0,0.00014413,2]
[346849539,1735325359197,-500.0,0.00014413,2]
[346849540,1735325359218,-500.0,0.00014413,2]
[346849541,1735325359240,-500.0,0.00014413,2]
[346849542,1735325359265,-500.0,0.00014413,2]
[346849543,1735325359287,-500.0,0.00014413,2]
[346849544,1735325359308,-500.0,0.00014413,2]
[346849545,1735325359330,-500.0,0.00014414,2]
[346849546,1735325359353,-500.0,0.00014414,2]
[346849547,1735325359375,-500.0,0.00014414,2]
[346849548,1735325359396,-500.0,0.00014414,2]
[346849549,1735325359418,-472.64,0.00014414,2]
[346849550,1735325359439,-594.83893025,0.00014545,2]
[346849551,1735325359460,-500.0,0.00014585,2]
[346849552,1735325359480,-500.0,0.00014585,2]
[346849553,1735325359502,-500.0,0.00014586,2]
[346849554,1735325359525,-500.0,0.00014586,2]
[346849555,1735325359546,-311.76,0.00014685,2]
[346849556,1735325359568,-500.0,0.00014685,2]
[346849557,1735325359590,-500.0,0.00014685,2]
[346849558,1735325359612,-500.0,0.00014685,2]
[346849559,1735325359634,-500.0,0.00014685,2]
[346849560,1735325359661,-500.0,0.00014685,2]
[346849561,1735325359684,-500.0,0.00014685,2]
[346849562,1735325359706,-500.0,0.00014685,2]
[346849563,1735325359731,-500.0,0.00014685,2]
[346849564,1735325359753,-500.0,0.00014685,2]
[346849565,1735325359775,-500.0,0.00014685,2]
[346849566,1735325359799,-500.0,0.00014685,2]
[346849567,1735325359820,-317.65208545,0.00014685,2]
[346849568,1735325359841,-500.0,0.00014685,2]
[346849569,1735325359862,-500.0,0.00014685,2]
[346849570,1735325359883,-228.88,0.00014685,2]
[346849571,1735325359905,-500.0,0.00014685,2]
[346849572,1735325359927,-346.51,0.00014686,2]
[346849573,1735325359950,-6695.98,0.00014686,2]
[346849574,1735325359972,-500.0,0.00014686,2]
[346849575,1735325359993,-500.0,0.00014687,2]
[346849576,1735325360015,-635.79,0.00014687,2]
[346849577,1735325360036,-500.0,0.00014687,2]
[346849578,1735325360058,-500.0,0.00014687,2]
[346849579,1735325360080,-500.0,0.00014687,2]
[346849580,1735325360101,-500.0,0.00014687,2]
[346849581,1735325360123,-500.0,0.00014687,2]
[346849582,1735325360145,-500.0,0.00014687,2]
[346849583,1735325360166,-342.44,0.00014687,2]
[346849584,1735325360188,-500.0,0.00014687,2]
[346849585,1735325360210,-500.0,0.00014687,2]
[346849586,1735325360233,-500.0,0.00014687,2]
[346849587,1735325360255,-500.0,0.00014687,2]
[346849588,1735325360280,-378.54,0.00014688,2]
[346849589,1735325360302,-500.0,0.00014688,2]
[346849590,1735325360324,-571.1824543,0.00014688,2]
[346849591,1735325360349,-500.0,0.00014688,2]
[346849592,1735325360370,-1000.0,0.00014812,2]
[346849593,1735325360390,-893.1411399,0.00014835,2]
[346849594,1735325360410,-500.0,0.00014859,2]
[346849595,1735325360430,-263.895864,0.00014859,2]
[346849596,1735325360453,-500.0,0.0001486,2]
[346849597,1735325360476,-500.0,0.0001486,2]
[346849598,1735325360497,-500.0,0.00014959,2]
[346849599,1735325360519,-500.0,0.00014959,2]
[346849600,1735325360540,-500.0,0.00014959,2]
[346849601,1735325360563,-500.0,0.00014959,2]
[346849602,1735325360585,-500.0,0.00014959,2]
[346849603,1735325360607,-500.0,0.00014959,2]
[346849604,1735325360629,-500.0,0.00014959,2]
[346849605,1735325360650,-623.71423621,0.00014959,2]
[346849606,1735325360673,-500.0,0.00014959,2]
[346849607,1735325360695,-500.0,0.00014959,2]
[346849608,1735325360716,-500.0,0.00014959,2]
[346849609,1735325360738,-500.0,0.00014959,2]
[346849610,1735325360764,-500.0,0.00014959,2]
[346849611,1735325360785,-500.0,0.00014959,2]
[346849612,1735325360808,-6695.98,0.0001496,2]
[346849613,1735325360830,-500.0,0.0001496,2]
[346849614,1735325360851,-289.51,0.00014961,2]
[346849615,1735325360872,-500.0,0.00014961,2]
[346849616,1735325360893,-500.0,0.00014961,2]
[346849617,1735325360914,-500.0,0.00014961,2]
[346849618,1735325360934,-500.0,0.00014961,2]
[346849619,1735325360954,-500.0,0.00014961,2]
[346849620,1735325360976,-500.0,0.00014961,2]
[346849621,1735325360997,-637.47405859,0.00014961,2]
[346849622,1735325361018,-500.0,0.00014961,2]
[346849623,1735325361038,-539.71,0.00014961,2]
[346849624,1735325361060,-500.0,0.00014961,2]
[346849625,1735325361082,-500.0,0.00014962,2]
[346849626,1735325361103,-500.0,0.00014962,2]
[346849627,1735325361125,-500.0,0.00015133,2]
[346849628,1735325361148,-500.0,0.00015134,2]
[346849629,1735325361255,-500.0,0.00015233,2]
[346849630,1735325361279,-500.0,0.00015233,2]
[346849631,1735325361301,-500.0,0.00015233,2]
[346849632,1735325361322,-500.0,0.00015233,2]
[346849633,1735325361346,-500.0,0.00015233,2]
[346849634,1735325361367,-500.0,0.00015233,2]
[346849635,1735325361391,-6695.98,0.00015234,2]
[346849636,1735325361413,-500.0,0.00015234,2]
[346849637,1735325361435,-500.0,0.00015235,2]
[346849638,1735325361456,-500.0,0.00015235,2]
[346849639,1735325361484,-500.0,0.00015235,2]
[346849640,1735325361511,-500.0,0.00015235,2]
[346849641,1735325361533,-500.0,0.00015235,2]
[346849642,1735325361555,-500.0,0.00015235,2]
[346849643,1735325361576,-500.0,0.00015235,2]
[346849644,1735325361596,-208.60780376,0.00015235,2]
[346849645,1735325361619,-500.0,0.00015236,2]
[346849646,1735325361641,-599.28,0.00015236,2]
[346849647,1735325361662,-500.0,0.00015407,2]
[346849648,1735325361684,-318.5,0.00015408,2]
[346849649,1735325361705,-500.0,0.00015507,2]
[346849650,1735325361726,-500.0,0.00015507,2]
[346849651,1735325361748,-500.0,0.00015507,2]
[346849652,1735325361770,-500.0,0.00015507,2]
[346849653,1735325361792,-500.0,0.00015507,2]
[346849654,1735325361814,-500.0,0.00015507,2]
[346849655,1735325361837,-6695.98,0.00015508,2]
[346849656,1735325361861,-500.0,0.00015508,2]
[346849657,1735325361884,-500.0,0.00015509,2]
[346849658,1735325361906,-500.0,0.00015509,2]
[346849659,1735325361932,-500.0,0.00015509,2]
[346849660,1735325361957,-500.0,0.00015509,2]
[346849661,1735325361979,-500.0,0.00015509,2]
[346849662,1735325362001,-500.0,0.00015509,2]
[346849663,1735325362023,-500.0,0.00015509,2]
[346849664,1735325362047,-500.0,0.0001551,2]
[346849665,1735325362070,-182.76102468,0.00015511,2]
[346849666,1735325362094,-500.0,0.00015681,2]
[346849667,1735325362118,-500.0,0.00015781,2]
[346849668,1735325362143,-500.0,0.00015781,2]
[346849669,1735325362167,-500.0,0.00015781,2]
[346849670,1735325362188,-500.0,0.00015781,2]
[346849671,1735325362212,-6695.98,0.00015782,2]
[346849672,1735325362234,-500.0,0.00015782,2]
[346849673,1735325362257,-514.45,0.00015783,2]
[346849674,1735325362282,-500.0,0.00015783,2]
[346849675,1735325362305,-500.0,0.00015783,2]
[346849676,1735325362326,-500.0,0.00015783,2]
[346849677,1735325362347,-500.0,0.00015783,2]
[346849678,1735325362368,-500.0,0.00015783,2]
[346849679,1735325362389,-500.0,0.00015783,2]
[346849680,1735325362412,-500.0,0.00015784,2]
[346849681,1735325362432,-240.61904564,0.00015955,2]
[346849682,1735325362454,-500.0,0.00016055,2]
[346849683,1735325362477,-500.0,0.00016055,2]
[346849684,1735325362499,-500.0,0.00016055,2]
[346849685,1735325362521,-441.18,0.00016055,2]
[346849686,1735325362544,-6695.98,0.00016056,2]
[346849687,1735325362566,-500.0,0.00016056,2]
[346849688,1735325362588,-500.0,0.00016057,2]
[346849689,1735325362611,-500.0,0.00016057,2]
[346849690,1735325362633,-500.0,0.00016057,2]
[346849691,1735325362654,-500.0,0.00016057,2]
[346849692,1735325362678,-500.0,0.00016057,2]
[346849693,1735325362699,-500.0,0.00016057,2]
[346849694,1735325362723,-500.0,0.00016058,2]
[346849695,1735325362745,-394.0,0.00016301,2]
[346849696,1735325362765,-2127.0,0.00016301,2]
[346849697,1735325362786,-534.0,0.00016301,2]
[346849698,1735325362805,-2358.0,0.00016301,2]
[346849699,1735325362827,-300.55873231,0.00016329,2]
[346849700,1735325362848,-500.0,0.00016329,2]
[346849701,1735325362869,-500.0,0.00016329,2]
[346849702,1735325362891,-6695.98,0.0001633,2]
[346849703,1735325362912,-500.0,0.0001633,2]
[346849704,1735325362933,-500.0,0.00016331,2]
[346849705,1735325362955,-500.0,0.00016331,2]
[346849706,1735325362977,-500.0,0.00016331,2]
[346849707,1735325363001,-500.0,0.00016331,2]
[346849708,1735325363025,-500.0,0.00016331,2]
[346849709,1735325363048,-500.0,0.00016331,2]
[346849710,1735325363072,-500.0,0.00016332,2]
[346849711,1735325363095,-500.0,0.00016438,2]
[346849712,1735325363117,-500.0,0.00016438,2]
[346849713,1735325363139,-500.0,0.00016438,2]
[346849714,1735325363160,-500.0,0.00016438,2]
[346849715,1735325363184,-500.0,0.00016438,2]
[346849716,1735325363207,-500.0,0.00016438,2]
[346849717,1735325363230,-489.89874605,0.00016438,2]
[346849718,1735325363257,-500.0,0.00016438,2]
[346849719,1735325363282,-500.0,0.00016438,2]
[346849720,1735325363304,-500.0,0.00016438,2]
[346849721,1735325363326,-500.0,0.00016438,2]
[346849722,1735325363353,-250.551,0.0001655,2]
[346849723,1735325363376,-150.0,0.000166,2]
[346849724,1735325363398,-318.58,0.00016603,2]
[346849725,1735325363420,-500.0,0.00016603,2]
[346849726,1735325363443,-6695.98,0.00016604,2]
[346849727,1735325363466,-500.0,0.00016604,2]
[346849728,1735325363488,-500.0,0.00016605,2]
[346849729,1735325363509,-500.0,0.00016605,2]
[346849730,1735325363630,-500.0,0.00016605,2]
[346849731,1735325363654,-500.0,0.00016605,2]
[346849732,1735325363677,-353.61,0.00016605,2]
[346849733,1735325363701,-500.0,0.00016605,2]
[346849734,1735325363725,-235.2,0.00016606,2]
[346849735,1735325363747,-1200.0,0.00016616,2]
[346849736,1735325363771,-1300.78,0.00016701,2]
[346849737,1735325363795,-500.0,0.00016701,2]
[346849738,1735325363818,-500.0,0.00016701,2]
[346849739,1735325363841,-643.61,0.00016701,2]
[346849740,1735325363865,-500.0,0.00016876,2]
[346849741,1735325363888,-6695.98,0.00016878,2]
[346849742,1735325363912,-500.0,0.00016878,2]
[346849743,1735325363936,-500.0,0.00016879,2]
[346849744,1735325363960,-500.0,0.00016879,2]
[346849745,1735325363983,-500.0,0.00016879,2]
[346849746,1735325364005,-500.0,0.00016879,2]
[346849747,1735325364028,-500.0,0.00016879,2]
[346849748,1735325364051,-1300.78,0.00016975,2]
[346849749,1735325364073,-500.0,0.00016975,2]
[346849750,1735325364097,-500.0,0.0001715,2]
[346849751,1735325364121,-6695.98,0.00017152,2]
[346849752,1735325364144,-500.0,0.00017153,2]
[346849753,1735325364167,-500.0,0.00017153,2]
[346849754,1735325364192,-500.0,0.00017153,2]
[346849755,1735325364215,-409.0309867,0.00017153,2]
[346849756,1735325364239,-1300.78,0.00017249,2]
[346849757,1735325364263,-500.0,0.00017249,2]
[346849758,1735325364286,-500.0,0.00017424,2]
[346849759,1735325364310,-6695.98,0.00017426,2]
[346849760,1735325364333,-358.5426572,0.00017427,2]
[346849761,1735325364356,-1357.33,0.00017523,2]
[346849762,1735325364379,-1300.78,0.00017523,2]
[346849763,1735325364401,-500.0,0.00017523,2]
[346849764,1735325364425,-500.0,0.00017698,2]
[346849765,1735325364449,-6695.98,0.000177,2]